[Event "December 19 Late 2023"]
[Site "https://www.chess.com"]
[Date "2023.12.19"]
[Round "8"]
[White "Sailer, Mike"]
[Black "Gerbelli Neto, Eduardo"]
[Result "1-0"]
[Board "120"]
[TimeControl "180+1"]
[WhiteFideId "2012901"]
[BlackFideId "2103281"]
[WhiteElo "2109"]
[BlackElo "2178"]
[WhiteTeam "USA"]
[BlackTeam "BRA"]
[WhiteClock "0:01:08"]
[BlackClock "0:00:52"]

1. d4 {[%clk 0:02:56]}  d5 {[%clk 0:02:59]} 2. Bf4 {[%clk 0:02:52]}  Nf6 {[%clk 0:02:58]} 3. e3 {[%clk 0:02:50]}  Bf5 {[%clk 0:02:58]} 4. Nc3 {[%clk 0:02:44]}  c6 {[%clk 0:02:57]} 5. Nf3 {[%clk 0:02:36]}  Nbd7 {[%clk 0:02:56]} 6. Ne5 {[%clk 0:02:34]}  e6 {[%clk 0:02:37]} 7. g4 {[%clk 0:02:20]}  Bg6 {[%clk 0:02:35]} 8. h4 {[%clk 0:02:17]}  h6 {[%clk 0:02:11]} 9. Nxg6 {[%clk 0:02:14]}  fxg6 {[%clk 0:02:12]} 10. Bd3 {[%clk 0:02:09]}  Kf7 {[%clk 0:02:09]} 11. Qf3 {[%clk 0:01:54]}  Bb4 {[%clk 0:01:40]} 12. O-O-O {[%clk 0:01:42]}  Bxc3 {[%clk 0:01:39]} 13. bxc3 {[%clk 0:01:41]}  Nf8 {[%clk 0:01:14]} 14. g5 {[%clk 0:01:32]}  hxg5 {[%clk 0:01:10]} 15. hxg5 {[%clk 0:01:29]}  Rxh1 {[%clk 0:01:09]} 16. Rxh1 {[%clk 0:01:29]}  Qa5 {[%clk 0:01:01]} 17. gxf6 {[%clk 0:01:13]}  Qxc3 {[%clk 0:00:52]} 18. fxg7 {[%clk 0:01:08]} 1-0

[Event "December 19 Late 2023"]
[Site "https://www.chess.com"]
[Date "2023.12.19"]
[Round "8"]
[White "Saim, Mohamed Ilias"]
[Black "Biernacki, Mark"]
[Result "0-1"]
[Board "121"]
[TimeControl "180+1"]
[WhiteFideId "7900465"]
[BlackFideId "2082322"]
[WhiteElo "2063"]
[BlackElo "1965"]
[WhiteTeam "ALG"]
[BlackTeam "USA"]
[WhiteClock "0:00:08"]
[BlackClock "0:00:13"]

1. d4 {[%clk 0:03:00]}  d5 {[%clk 0:02:59]} 2. c4 {[%clk 0:02:57]}  dxc4 {[%clk 0:03:00]} 3. e4 {[%clk 0:02:56]}  b5 {[%clk 0:03:00]} 4. a4 {[%clk 0:02:55]}  c6 {[%clk 0:03:00]} 5. axb5 {[%clk 0:02:41]}  cxb5 {[%clk 0:03:01]} 6. b3 {[%clk 0:02:37]}  e5 {[%clk 0:02:55]} 7. d5 {[%clk 0:02:32]}  Nf6 {[%clk 0:02:51]} 8. Bg5 {[%clk 0:02:18]}  Bb4+ {[%clk 0:02:46]} 9. Nd2 {[%clk 0:02:18]}  c3 {[%clk 0:02:45]} 10. Bxb5+ {[%clk 0:02:16]}  Bd7 {[%clk 0:02:44]} 11. Bd3 {[%clk 0:02:05]}  h6 {[%clk 0:02:26]} 12. Be3 {[%clk 0:01:54]}  Ng4 {[%clk 0:02:07]} 13. Ngf3 {[%clk 0:01:47]}  Nxe3 {[%clk 0:02:04]} 14. fxe3 {[%clk 0:01:48]}  cxd2+ {[%clk 0:01:51]} 15. Nxd2 {[%clk 0:01:47]}  Qg5 {[%clk 0:01:50]} 16. Qf3 {[%clk 0:01:40]}  O-O {[%clk 0:01:33]} 17. Qf2 {[%clk 0:01:24]}  Bc5 {[%clk 0:01:25]} 18. Nc4 {[%clk 0:01:20]}  Bb5 {[%clk 0:01:16]} 19. h4 {[%clk 0:00:45]}  Bb4+ {[%clk 0:01:16]} 20. Kf1 {[%clk 0:00:42]}  Qe7 {[%clk 0:01:09]} 21. g4 {[%clk 0:00:22]}  Nd7 {[%clk 0:01:04]} 22. g5 {[%clk 0:00:20]}  Nc5 {[%clk 0:00:59]} 23. gxh6 {[%clk 0:00:13]}  Nxd3 {[%clk 0:00:53]} 24. Qg3 {[%clk 0:00:12]}  Qf6+ {[%clk 0:00:49]} 25. Ke2 {[%clk 0:00:12]}  Qxh6 {[%clk 0:00:18]} 26. Kxd3 {[%clk 0:00:12]}  Bxc4+ {[%clk 0:00:16]} 27. bxc4 {[%clk 0:00:13]}  Bd6 {[%clk 0:00:16]} 28. Rag1 {[%clk 0:00:12]}  Rfb8 {[%clk 0:00:15]} 29. Kc2 {[%clk 0:00:11]}  Rb4 {[%clk 0:00:15]} 30. Kc3 {[%clk 0:00:10]}  Rc8 {[%clk 0:00:14]} 31. Qg4 {[%clk 0:00:10]}  Rbxc4+ {[%clk 0:00:12]} 32. Kd3 {[%clk 0:00:10]}  Rc3+ {[%clk 0:00:12]} 33. Kd2 {[%clk 0:00:11]}  Qxe3+ {[%clk 0:00:12]} 34. Kd1 {[%clk 0:00:08]}  Rc1# {[%clk 0:00:13]} 0-1

[Event "December 19 Late 2023"]
[Site "https://www.chess.com"]
[Date "2023.12.19"]
[Round "8"]
[White "Novikova, Margarita"]
[Black "Kornyukov, Alexey"]
[Result "1-0"]
[Board "122"]
[TimeControl "180+1"]
[WhiteFideId "14109689"]
[BlackFideId "4150457"]
[WhiteElo "2090"]
[BlackElo "2352"]
[WhiteTeam "GER"]
[BlackTeam "RUS"]
[WhiteClock "0:00:28"]
[BlackClock "0:00:00"]

1. e4 {[%clk 0:02:56]}  c5 {[%clk 0:02:59]} 2. Nc3 {[%clk 0:02:52]}  Nc6 {[%clk 0:02:57]} 3. d3 {[%clk 0:02:53]}  g6 {[%clk 0:02:53]} 4. Be3 {[%clk 0:02:53]}  d6 {[%clk 0:02:52]} 5. g3 {[%clk 0:02:53]}  Bg7 {[%clk 0:02:51]} 6. Qd2 {[%clk 0:02:52]}  e5 {[%clk 0:02:51]} 7. Bg2 {[%clk 0:02:52]}  Be6 {[%clk 0:02:50]} 8. Nge2 {[%clk 0:02:52]}  h5 {[%clk 0:02:49]} 9. Nd1 {[%clk 0:02:50]}  Nd4 {[%clk 0:02:39]} 10. c3 {[%clk 0:02:49]}  Bh3 {[%clk 0:02:09]} 11. Rg1 {[%clk 0:02:29]}  Bxg2 {[%clk 0:02:06]} 12. cxd4 {[%clk 0:02:16]}  exd4 {[%clk 0:01:55]} 13. Rxg2 {[%clk 0:01:59]}  dxe3 {[%clk 0:01:54]} 14. Nxe3 {[%clk 0:01:59]}  Ne7 {[%clk 0:01:48]} 15. f4 {[%clk 0:01:52]}  b5 {[%clk 0:01:24]} 16. Kf2 {[%clk 0:01:45]}  h4 {[%clk 0:01:17]} 17. f5 {[%clk 0:01:39]}  d5 {[%clk 0:01:09]} 18. Nf4 {[%clk 0:01:22]}  dxe4 {[%clk 0:01:04]} 19. Rd1 {[%clk 0:01:12]}  hxg3+ {[%clk 0:01:01]} 20. hxg3 {[%clk 0:01:12]}  exd3 {[%clk 0:00:44]} 21. Qxd3 {[%clk 0:01:10]}  Qxd3 {[%clk 0:00:38]} 22. Rxd3 {[%clk 0:01:05]}  Bxb2 {[%clk 0:00:34]} 23. fxg6 {[%clk 0:00:58]}  fxg6 {[%clk 0:00:29]} 24. Ne6 {[%clk 0:00:56]}  Rc8 {[%clk 0:00:16]} 25. Rb3 {[%clk 0:00:53]}  Bc1 {[%clk 0:00:11]} 26. Ng4 {[%clk 0:00:47]}  b4 {[%clk 0:00:07]} 27. Rf3 {[%clk 0:00:36]}  Bb2 {[%clk 0:00:02]} 28. Kf1 {[%clk 0:00:29]}  Bc3 {[%clk 0:00:02]} 29. Re2 {[%clk 0:00:29]}  Kd7 {[%clk 0:00:02]} 30. Kg2 {[%clk 0:00:28]}  Rhe8 {[%clk 0:00:00]} 31. Nf4 {[%clk 0:00:28]} 1-0

[Event "December 19 Late 2023"]
[Site "https://www.chess.com"]
[Date "2023.12.19"]
[Round "8"]
[White "GirthyHuell"]
[Black "Reinecke, Katharina"]
[Result "1-0"]
[Board "124"]
[TimeControl "180+1"]
[BlackFideId "12929727"]
[WhiteElo "2294"]
[BlackElo "1761"]
[BlackTeam "GER"]
[WhiteClock "0:00:57"]
[BlackClock "0:00:00"]

1. e4 {[%clk 0:02:57]}  c6 {[%clk 0:02:59]} 2. d4 {[%clk 0:02:57]}  d5 {[%clk 0:02:59]} 3. f3 {[%clk 0:02:57]}  e6 {[%clk 0:02:53]} 4. Be3 {[%clk 0:02:56]}  Nf6 {[%clk 0:02:52]} 5. e5 {[%clk 0:02:54]}  Nfd7 {[%clk 0:02:52]} 6. f4 {[%clk 0:02:53]}  c5 {[%clk 0:02:50]} 7. c3 {[%clk 0:02:53]}  Nc6 {[%clk 0:02:50]} 8. Nf3 {[%clk 0:02:53]}  cxd4 {[%clk 0:02:45]} 9. cxd4 {[%clk 0:02:53]}  a6 {[%clk 0:02:33]} 10. Bd3 {[%clk 0:02:42]}  b5 {[%clk 0:02:32]} 11. Nc3 {[%clk 0:02:42]}  Qb6 {[%clk 0:02:30]} 12. Bc2 {[%clk 0:02:39]}  a5 {[%clk 0:02:19]} 13. f5 {[%clk 0:02:32]}  Ba6 {[%clk 0:02:01]} 14. fxe6 {[%clk 0:02:24]}  fxe6 {[%clk 0:02:01]} 15. Ng5 {[%clk 0:02:21]}  Ne7 {[%clk 0:01:44]} 16. Qh5+ {[%clk 0:02:15]}  g6 {[%clk 0:01:38]} 17. Qf3 {[%clk 0:02:06]}  Nf5 {[%clk 0:01:16]} 18. g4 {[%clk 0:02:01]}  Nxe3 {[%clk 0:01:07]} 19. Qf7+ {[%clk 0:02:00]}  Kd8 {[%clk 0:01:06]} 20. Nxe6+ {[%clk 0:02:00]}  Kc8 {[%clk 0:01:02]} 21. Qe8+ {[%clk 0:01:59]}  Kb7 {[%clk 0:00:42]} 22. Qxd7+ {[%clk 0:01:58]}  Kb8 {[%clk 0:00:39]} 23. Nd8 {[%clk 0:01:31]}  Nxc2+ {[%clk 0:00:37]} 24. Kf1 {[%clk 0:01:19]}  b4+ {[%clk 0:00:37]} 25. Kg2 {[%clk 0:01:19]}  Ne3+ {[%clk 0:00:19]} 26. Kf3 {[%clk 0:01:13]}  bxc3 {[%clk 0:00:10]} 27. Nc6+ {[%clk 0:01:11]}  Qxc6 {[%clk 0:00:10]} 28. Qxc6 {[%clk 0:01:12]}  Nc4 {[%clk 0:00:07]} 29. bxc3 {[%clk 0:01:11]}  Ka7 {[%clk 0:00:06]} 30. Qc7+ {[%clk 0:01:07]}  Bb7 {[%clk 0:00:05]} 31. Rab1 {[%clk 0:01:06]}  Rb8 {[%clk 0:00:05]} 32. Rb5 {[%clk 0:01:04]}  Bh6 {[%clk 0:00:02]} 33. Rhb1 {[%clk 0:01:04]}  Rhf8+ {[%clk 0:00:01]} 34. Kg2 {[%clk 0:01:01]}  Ne3+ {[%clk 0:00:00]} 35. Kg3 {[%clk 0:00:57]} 1-0

[Event "December 19 Late 2023"]
[Site "https://www.chess.com"]
[Date "2023.12.19"]
[Round "8"]
[White "Chiquitita23"]
[Black "Cardozo Munar, Carlos Eduardo"]
[Result "0-1"]
[Board "125"]
[TimeControl "180+1"]
[BlackFideId "4409477"]
[WhiteElo "1976"]
[BlackElo "2067"]
[BlackTeam "COL"]
[WhiteClock "0:00:13"]
[BlackClock "0:01:35"]

1. e4 {[%clk 0:02:58]}  e6 {[%clk 0:02:59]} 2. d4 {[%clk 0:02:58]}  d5 {[%clk 0:02:59]} 3. Nc3 {[%clk 0:02:56]}  Nf6 {[%clk 0:02:59]} 4. e5 {[%clk 0:02:56]}  Nfd7 {[%clk 0:03:00]} 5. f4 {[%clk 0:02:57]}  c5 {[%clk 0:03:00]} 6. Nf3 {[%clk 0:02:57]}  Nc6 {[%clk 0:03:01]} 7. Be3 {[%clk 0:02:57]}  Qb6 {[%clk 0:03:02]} 8. Be2 {[%clk 0:02:54]}  cxd4 {[%clk 0:02:47]} 9. Nxd4 {[%clk 0:02:49]}  Bb4 {[%clk 0:02:35]} 10. O-O {[%clk 0:02:44]}  Bc5 {[%clk 0:02:25]} 11. Na4 {[%clk 0:02:23]}  Bxd4 {[%clk 0:02:25]} 12. Nxb6 {[%clk 0:02:21]}  Bxe3+ {[%clk 0:02:25]} 13. Kh1 {[%clk 0:02:22]}  Bxb6 {[%clk 0:02:25]} 14. c4 {[%clk 0:02:16]}  dxc4 {[%clk 0:02:20]} 15. Bxc4 {[%clk 0:02:14]}  O-O {[%clk 0:02:19]} 16. Qh5 {[%clk 0:01:48]}  Nd4 {[%clk 0:02:08]} 17. Rad1 {[%clk 0:01:41]}  g6 {[%clk 0:01:52]} 18. Qg4 {[%clk 0:01:28]}  Kg7 {[%clk 0:01:51]} 19. Rd3 {[%clk 0:01:20]}  Nf5 {[%clk 0:01:49]} 20. Rh3 {[%clk 0:01:09]}  Rd8 {[%clk 0:01:40]} 21. Bd3 {[%clk 0:00:57]}  Nf8 {[%clk 0:01:39]} 22. Bxf5 {[%clk 0:00:48]}  exf5 {[%clk 0:01:39]} 23. Qh4 {[%clk 0:00:46]}  Be6 {[%clk 0:01:39]} 24. Qf6+ {[%clk 0:00:34]}  Kg8 {[%clk 0:01:39]} 25. b3 {[%clk 0:00:24]}  Rd2 {[%clk 0:01:35]} 26. a4 {[%clk 0:00:13]}  Bd8 {[%clk 0:01:35]} 0-1

[Event "December 19 Late 2023"]
[Site "https://www.chess.com"]
[Date "2023.12.19"]
[Round "8"]
[White "De Souza, Cristiano Gomes"]
[Black "Kostiukov, Alexandr"]
[Result "1-0"]
[Board "126"]
[TimeControl "180+1"]
[WhiteFideId "2151758"]
[BlackFideId "14108100"]
[WhiteElo "2068"]
[BlackElo "2112"]
[WhiteTeam "BRA"]
[BlackTeam "UKR"]
[WhiteClock "0:00:18"]
[BlackClock "0:00:00"]

1. d4 {[%clk 0:03:00]}  g6 {[%clk 0:02:55]} 2. Nf3 {[%clk 0:03:00]}  Bg7 {[%clk 0:02:53]} 3. g3 {[%clk 0:03:00]}  Nf6 {[%clk 0:02:50]} 4. Bg2 {[%clk 0:02:59]}  O-O {[%clk 0:02:51]} 5. O-O {[%clk 0:02:59]}  c5 {[%clk 0:02:51]} 6. b3 {[%clk 0:02:57]}  cxd4 {[%clk 0:02:43]} 7. Nxd4 {[%clk 0:02:56]}  d5 {[%clk 0:02:41]} 8. Bb2 {[%clk 0:02:55]}  Nc6 {[%clk 0:02:40]} 9. Nxc6 {[%clk 0:02:54]}  bxc6 {[%clk 0:02:40]} 10. Na3 {[%clk 0:02:54]}  Re8 {[%clk 0:02:35]} 11. c4 {[%clk 0:02:53]}  e5 {[%clk 0:02:33]} 12. cxd5 {[%clk 0:02:52]}  cxd5 {[%clk 0:02:34]} 13. Rc1 {[%clk 0:02:51]}  Bb7 {[%clk 0:02:29]} 14. Nb5 {[%clk 0:02:50]}  Re7 {[%clk 0:02:17]} 15. Ba3 {[%clk 0:02:48]}  Rd7 {[%clk 0:02:16]} 16. Qd2 {[%clk 0:02:42]}  a6 {[%clk 0:02:10]} 17. Nc3 {[%clk 0:02:40]}  Qa5 {[%clk 0:02:08]} 18. Bb2 {[%clk 0:02:38]}  d4 {[%clk 0:02:07]} 19. Ne4 {[%clk 0:02:28]}  Qxd2 {[%clk 0:02:03]} 20. Nxd2 {[%clk 0:02:28]}  Bxg2 {[%clk 0:02:00]} 21. Kxg2 {[%clk 0:02:28]}  Nd5 {[%clk 0:01:58]} 22. Nc4 {[%clk 0:02:22]}  Re8 {[%clk 0:01:46]} 23. Rfd1 {[%clk 0:02:21]}  Bh6 {[%clk 0:01:31]} 24. Ra1 {[%clk 0:02:10]}  Nb4 {[%clk 0:01:30]} 25. a3 {[%clk 0:02:04]}  Nc6 {[%clk 0:01:21]} 26. Bc1 {[%clk 0:01:56]}  Bg7 {[%clk 0:01:19]} 27. Ra2 {[%clk 0:01:51]}  e4 {[%clk 0:01:18]} 28. Bf4 {[%clk 0:01:40]}  f5 {[%clk 0:01:16]} 29. h4 {[%clk 0:01:39]}  Rd5 {[%clk 0:01:07]} 30. Rc2 {[%clk 0:01:35]}  Re6 {[%clk 0:01:03]} 31. Rdc1 {[%clk 0:01:29]}  Bf8 {[%clk 0:00:58]} 32. Nb6 {[%clk 0:01:26]}  Rb5 {[%clk 0:00:57]} 33. Rxc6 {[%clk 0:01:23]}  Rxb6 {[%clk 0:00:57]} 34. Rxe6 {[%clk 0:01:22]}  Rxe6 {[%clk 0:00:56]} 35. b4 {[%clk 0:01:22]}  Rb6 {[%clk 0:00:45]} 36. Rc8 {[%clk 0:01:20]}  Kf7 {[%clk 0:00:43]} 37. Rc7+ {[%clk 0:01:18]}  Kg8 {[%clk 0:00:42]} 38. Be5 {[%clk 0:01:14]}  h5 {[%clk 0:00:38]} 39. Bxd4 {[%clk 0:01:11]}  Rd6 {[%clk 0:00:37]} 40. Bc5 {[%clk 0:01:10]}  Rd8 {[%clk 0:00:34]} 41. Bxf8 {[%clk 0:01:07]}  Kxf8 {[%clk 0:00:35]} 42. Rc6 {[%clk 0:01:07]}  Rd2 {[%clk 0:00:31]} 43. Rxg6 {[%clk 0:01:04]}  Kf7 {[%clk 0:00:31]} 44. Rxa6 {[%clk 0:01:03]}  Rxe2 {[%clk 0:00:31]} 45. Kf1 {[%clk 0:01:00]}  Rb2 {[%clk 0:00:29]} 46. Rh6 {[%clk 0:00:58]}  Rb3 {[%clk 0:00:25]} 47. Rxh5 {[%clk 0:00:57]}  Kg6 {[%clk 0:00:26]} 48. Rh8 {[%clk 0:00:56]}  Rxa3 {[%clk 0:00:25]} 49. Rb8 {[%clk 0:00:40]}  Ra1+ {[%clk 0:00:24]} 50. Kg2 {[%clk 0:00:40]}  Ra2 {[%clk 0:00:24]} 51. Kg1 {[%clk 0:00:39]}  Ra1+ {[%clk 0:00:24]} 52. Kg2 {[%clk 0:00:39]}  Ra2 {[%clk 0:00:25]} 53. Rb6+ {[%clk 0:00:37]}  Kg7 {[%clk 0:00:20]} 54. Kg1 {[%clk 0:00:24]}  Ra1+ {[%clk 0:00:19]} 55. Kh2 {[%clk 0:00:24]}  Ra2 {[%clk 0:00:20]} 56. Kh3 {[%clk 0:00:23]}  Rxf2 {[%clk 0:00:19]} 57. h5 {[%clk 0:00:23]}  Rf1 {[%clk 0:00:14]} 58. h6+ {[%clk 0:00:22]}  Kh7 {[%clk 0:00:15]} 59. Rf6 {[%clk 0:00:20]}  e3 {[%clk 0:00:13]} 60. Re6 {[%clk 0:00:19]}  Rf3 {[%clk 0:00:12]} 61. Kg2 {[%clk 0:00:19]}  Rf2+ {[%clk 0:00:12]} 62. Kh3 {[%clk 0:00:19]}  Rf3 {[%clk 0:00:11]} 63. b5 {[%clk 0:00:18]}  f4 {[%clk 0:00:11]} 64. Kg4 {[%clk 0:00:18]}  Rxg3+ {[%clk 0:00:00]} 65. Kxf4 {[%clk 0:00:18]} 1-0

[Event "December 19 Late 2023"]
[Site "https://www.chess.com"]
[Date "2023.12.19"]
[Round "8"]
[White "Guevara Sanchez, Erick Marvin"]
[Black "Khokhlova, Daria"]
[Result "0-1"]
[Board "130"]
[TimeControl "180+1"]
[WhiteFideId "6700136"]
[BlackFideId "24182729"]
[WhiteElo "2040"]
[BlackElo "2032"]
[WhiteTeam "ESA"]
[BlackTeam "FID"]
[WhiteClock "0:00:09"]
[BlackClock "0:00:17"]

1. e4 {[%clk 0:03:00]}  c5 {[%clk 0:02:59]} 2. Ke2 {[%clk 0:03:01]}  Nc6 {[%clk 0:02:59]} 3. Ke1 {[%clk 0:03:02]}  d5 {[%clk 0:02:59]} 4. exd5 {[%clk 0:03:02]}  Qxd5 {[%clk 0:03:00]} 5. Nc3 {[%clk 0:03:02]}  Qd8 {[%clk 0:02:57]} 6. Nf3 {[%clk 0:02:59]}  Nf6 {[%clk 0:02:57]} 7. d3 {[%clk 0:02:56]}  e6 {[%clk 0:02:57]} 8. g3 {[%clk 0:02:53]}  Be7 {[%clk 0:02:57]} 9. Bg2 {[%clk 0:02:53]}  O-O {[%clk 0:02:58]} 10. Be3 {[%clk 0:02:50]}  e5 {[%clk 0:02:57]} 11. Qd2 {[%clk 0:02:48]}  Qc7 {[%clk 0:02:51]} 12. Ke2 {[%clk 0:02:48]}  Bg4 {[%clk 0:02:50]} 13. h3 {[%clk 0:02:46]}  Be6 {[%clk 0:02:40]} 14. Rhe1 {[%clk 0:02:45]}  Nd4+ {[%clk 0:02:38]} 15. Kf1 {[%clk 0:02:42]}  Bxh3 {[%clk 0:02:28]} 16. Bxd4 {[%clk 0:02:22]}  Bxg2+ {[%clk 0:02:26]} 17. Kxg2 {[%clk 0:02:23]}  exd4 {[%clk 0:02:18]} 18. Ne4 {[%clk 0:02:22]}  Nxe4 {[%clk 0:02:18]} 19. Rxe4 {[%clk 0:02:23]}  Bf6 {[%clk 0:02:18]} 20. Rh1 {[%clk 0:02:22]}  Rfe8 {[%clk 0:02:12]} 21. Ng5 {[%clk 0:02:20]}  h6 {[%clk 0:02:07]} 22. Nf3 {[%clk 0:02:15]}  Rxe4 {[%clk 0:02:05]} 23. dxe4 {[%clk 0:02:16]}  Re8 {[%clk 0:02:06]} 24. Re1 {[%clk 0:02:11]}  Qc6 {[%clk 0:02:05]} 25. Qe2 {[%clk 0:02:01]}  b5 {[%clk 0:02:00]} 26. Kg1 {[%clk 0:01:55]}  Bd8 {[%clk 0:02:00]} 27. Nd2 {[%clk 0:01:46]}  c4 {[%clk 0:01:55]} 28. f4 {[%clk 0:01:43]}  Bb6 {[%clk 0:01:54]} 29. Kh2 {[%clk 0:01:38]}  Rd8 {[%clk 0:01:46]} 30. Nf3 {[%clk 0:01:36]}  d3 {[%clk 0:01:46]} 31. cxd3 {[%clk 0:01:34]}  cxd3 {[%clk 0:01:41]} 32. Qd2 {[%clk 0:01:32]}  Qc4 {[%clk 0:01:17]} 33. b3 {[%clk 0:01:21]}  Qe6 {[%clk 0:01:14]} 34. Ne5 {[%clk 0:01:16]}  Rd4 {[%clk 0:01:10]} 35. Re3 {[%clk 0:01:07]}  Ba5 {[%clk 0:01:02]} 36. Qd1 {[%clk 0:00:57]}  d2 {[%clk 0:00:59]} 37. Re2 {[%clk 0:00:48]}  f6 {[%clk 0:00:55]} 38. Nf3 {[%clk 0:00:46]}  Rxe4 {[%clk 0:00:54]} 39. Rxe4 {[%clk 0:00:46]}  Qxe4 {[%clk 0:00:53]} 40. Nxd2 {[%clk 0:00:44]}  Qd3 {[%clk 0:00:52]} 41. Qg4 {[%clk 0:00:42]}  Qxd2+ {[%clk 0:00:52]} 42. Kh3 {[%clk 0:00:42]}  Qd6 {[%clk 0:00:32]} 43. Qc8+ {[%clk 0:00:34]}  Bd8 {[%clk 0:00:31]} 44. f5 {[%clk 0:00:31]}  Kh7 {[%clk 0:00:23]} 45. Qb7 {[%clk 0:00:26]}  Bc7 {[%clk 0:00:22]} 46. Qf3 {[%clk 0:00:25]}  Qe5 {[%clk 0:00:19]} 47. Qg4 {[%clk 0:00:25]}  Qxg3+ {[%clk 0:00:17]} 48. Qxg3 {[%clk 0:00:25]}  Bxg3 {[%clk 0:00:18]} 49. Kxg3 {[%clk 0:00:26]}  g6 {[%clk 0:00:19]} 50. Kf4 {[%clk 0:00:25]}  g5+ {[%clk 0:00:17]} 51. Ke4 {[%clk 0:00:25]}  h5 {[%clk 0:00:17]} 52. Kd5 {[%clk 0:00:25]}  h4 {[%clk 0:00:18]} 53. Ke4 {[%clk 0:00:25]}  g4 {[%clk 0:00:16]} 54. b4 {[%clk 0:00:16]}  h3 {[%clk 0:00:16]} 55. Ke3 {[%clk 0:00:16]}  Kh6 {[%clk 0:00:17]} 56. Kf4 {[%clk 0:00:09]}  h2 {[%clk 0:00:17]} 0-1

[Event "December 19 Late 2023"]
[Site "https://www.chess.com"]
[Date "2023.12.19"]
[Round "8"]
[White "Harrington, Steve"]
[Black "Vila Dupla, Aurelio"]
[Result "1-0"]
[Board "132"]
[TimeControl "180+1"]
[WhiteFideId "2038730"]
[BlackFideId "2203383"]
[WhiteElo "2153"]
[BlackElo "2009"]
[WhiteTeam "USA"]
[BlackTeam "ESP"]
[WhiteClock "0:00:05"]
[BlackClock "0:00:00"]

1. e4 {[%clk 0:03:00]}  c5 {[%clk 0:02:59]} 2. c3 {[%clk 0:03:00]}  d5 {[%clk 0:02:58]} 3. exd5 {[%clk 0:03:01]}  Qxd5 {[%clk 0:02:58]} 4. d4 {[%clk 0:03:01]}  Nf6 {[%clk 0:02:57]} 5. Nf3 {[%clk 0:03:01]}  Bg4 {[%clk 0:02:57]} 6. Be2 {[%clk 0:03:02]}  Nc6 {[%clk 0:02:56]} 7. O-O {[%clk 0:03:02]}  e6 {[%clk 0:02:55]} 8. h3 {[%clk 0:03:02]}  Bh5 {[%clk 0:02:54]} 9. Re1 {[%clk 0:03:03]}  Be7 {[%clk 0:02:39]} 10. Be3 {[%clk 0:03:01]}  cxd4 {[%clk 0:02:37]} 11. cxd4 {[%clk 0:03:02]}  O-O {[%clk 0:02:36]} 12. Nc3 {[%clk 0:03:03]}  Qd6 {[%clk 0:02:35]} 13. Rc1 {[%clk 0:02:59]}  Rfd8 {[%clk 0:02:32]} 14. a3 {[%clk 0:02:58]}  Rac8 {[%clk 0:02:21]} 15. b4 {[%clk 0:02:41]}  Nd5 {[%clk 0:02:13]} 16. Ne4 {[%clk 0:02:31]}  Qb8 {[%clk 0:01:47]} 17. Nc5 {[%clk 0:02:05]}  b6 {[%clk 0:01:38]} 18. Nd3 {[%clk 0:02:03]}  Nxe3 {[%clk 0:01:33]} 19. fxe3 {[%clk 0:02:04]}  Bf6 {[%clk 0:01:33]} 20. Nf4 {[%clk 0:01:58]}  Bxf3 {[%clk 0:01:10]} 21. Bxf3 {[%clk 0:01:59]}  Nxd4 {[%clk 0:01:08]} 22. Rxc8 {[%clk 0:01:11]}  Nxf3+ {[%clk 0:01:06]} 23. Qxf3 {[%clk 0:01:10]}  Qxc8 {[%clk 0:01:06]} 24. Nh5 {[%clk 0:01:10]}  Be5 {[%clk 0:00:58]} 25. Rf1 {[%clk 0:01:03]}  Rd7 {[%clk 0:00:56]} 26. Qe4 {[%clk 0:00:50]}  Qc7 {[%clk 0:00:42]} 27. Qa8+ {[%clk 0:00:41]}  Rd8 {[%clk 0:00:42]} 28. Qe4 {[%clk 0:00:42]}  Bh2+ {[%clk 0:00:30]} 29. Kh1 {[%clk 0:00:41]}  Bd6 {[%clk 0:00:31]} 30. Qg4 {[%clk 0:00:38]}  Bf8 {[%clk 0:00:25]} 31. Rf4 {[%clk 0:00:23]}  Kh8 {[%clk 0:00:20]} 32. Rf1 {[%clk 0:00:18]}  Qe7 {[%clk 0:00:19]} 33. Nf4 {[%clk 0:00:16]}  g6 {[%clk 0:00:17]} 34. Qf3 {[%clk 0:00:16]}  Bg7 {[%clk 0:00:17]} 35. Qe2 {[%clk 0:00:14]}  Qd7 {[%clk 0:00:17]} 36. Qa6 {[%clk 0:00:13]}  h5 {[%clk 0:00:15]} 37. h4 {[%clk 0:00:12]}  Kg8 {[%clk 0:00:15]} 38. Nh3 {[%clk 0:00:12]}  Qd3 {[%clk 0:00:11]} 39. Qxd3 {[%clk 0:00:10]}  Rxd3 {[%clk 0:00:11]} 40. Ng5 {[%clk 0:00:11]}  Rxa3 {[%clk 0:00:07]} 41. Nxf7 {[%clk 0:00:10]}  Rxe3 {[%clk 0:00:06]} 42. Ng5 {[%clk 0:00:08]}  Rb3 {[%clk 0:00:06]} 43. Nxe6 {[%clk 0:00:07]}  Rxb4 {[%clk 0:00:06]} 44. Rd1 {[%clk 0:00:06]}  Rxh4+ {[%clk 0:00:06]} 45. Kg1 {[%clk 0:00:07]}  Be5 {[%clk 0:00:05]} 46. Rd7 {[%clk 0:00:06]}  Re4 {[%clk 0:00:03]} 47. Ng5 {[%clk 0:00:04]}  Re1+ {[%clk 0:00:00]} 48. Kf2 {[%clk 0:00:05]} 1-0

[Event "December 19 Late 2023"]
[Site "https://www.chess.com"]
[Date "2023.12.19"]
[Round "8"]
[White "Vargas, Mauricio"]
[Black "Oliveira, Tiago Batista"]
[Result "1-0"]
[Board "134"]
[TimeControl "180+1"]
[WhiteFideId "4404572"]
[BlackFideId "2108291"]
[WhiteElo "1982"]
[BlackElo "1962"]
[WhiteTeam "COL"]
[BlackTeam "BRA"]
[WhiteClock "0:00:06"]
[BlackClock "0:00:00"]

1. e4 {[%clk 0:03:00]}  e5 {[%clk 0:02:56]} 2. Nf3 {[%clk 0:02:59]}  Nc6 {[%clk 0:02:55]} 3. d4 {[%clk 0:03:00]}  exd4 {[%clk 0:02:55]} 4. Bc4 {[%clk 0:03:01]}  Bc5 {[%clk 0:02:52]} 5. c3 {[%clk 0:03:00]}  Nf6 {[%clk 0:02:52]} 6. e5 {[%clk 0:03:00]}  d5 {[%clk 0:02:50]} 7. Bb5 {[%clk 0:02:58]}  Ne4 {[%clk 0:02:47]} 8. Nxd4 {[%clk 0:02:52]}  Bxd4 {[%clk 0:02:46]} 9. cxd4 {[%clk 0:02:49]}  O-O {[%clk 0:02:44]} 10. O-O {[%clk 0:02:49]}  Bf5 {[%clk 0:01:20]} 11. Be3 {[%clk 0:02:47]}  f6 {[%clk 0:01:05]} 12. Bxc6 {[%clk 0:02:36]}  bxc6 {[%clk 0:01:04]} 13. Qc1 {[%clk 0:02:36]}  Rb8 {[%clk 0:00:52]} 14. b3 {[%clk 0:02:35]}  fxe5 {[%clk 0:00:51]} 15. dxe5 {[%clk 0:02:33]}  d4 {[%clk 0:00:33]} 16. Rd1 {[%clk 0:02:26]}  c5 {[%clk 0:00:28]} 17. Bf4 {[%clk 0:02:21]}  Qh4 {[%clk 0:00:10]} 18. Rf1 {[%clk 0:02:01]}  Bg6 {[%clk 0:00:08]} 19. g3 {[%clk 0:01:40]}  Qh5 {[%clk 0:00:07]} 20. f3 {[%clk 0:01:37]}  Nc3 {[%clk 0:00:06]} 21. Nxc3 {[%clk 0:01:30]}  dxc3 {[%clk 0:00:07]} 22. Qxc3 {[%clk 0:01:30]}  Rbd8 {[%clk 0:00:06]} 23. Qxc5 {[%clk 0:01:26]}  Rd3 {[%clk 0:00:04]} 24. Qc4+ {[%clk 0:01:25]}  Kh8 {[%clk 0:00:04]} 25. Kg2 {[%clk 0:01:16]}  Rfd8 {[%clk 0:00:04]} 26. Rae1 {[%clk 0:01:12]}  Qf5 {[%clk 0:00:04]} 27. Rf2 {[%clk 0:01:04]}  c6 {[%clk 0:00:02]} 28. e6 {[%clk 0:01:00]}  Be8 {[%clk 0:00:02]} 29. e7 {[%clk 0:00:58]}  R8d5 {[%clk 0:00:01]} 30. Qxc6 {[%clk 0:00:38]}  Qd7 {[%clk 0:00:01]} 31. Qxd7 {[%clk 0:00:37]}  Rxd7 {[%clk 0:00:01]} 32. Rfe2 {[%clk 0:00:35]}  h6 {[%clk 0:00:01]} 33. Bc1 {[%clk 0:00:30]}  Kg8 {[%clk 0:00:02]} 34. Ba3 {[%clk 0:00:27]}  Kf7 {[%clk 0:00:02]} 35. Bc5 {[%clk 0:00:24]}  Rd2 {[%clk 0:00:02]} 36. a3 {[%clk 0:00:17]}  Rxe2+ {[%clk 0:00:02]} 37. Rxe2 {[%clk 0:00:17]}  Rd3 {[%clk 0:00:02]} 38. Rb2 {[%clk 0:00:12]}  a6 {[%clk 0:00:02]} 39. a4 {[%clk 0:00:11]}  Bc6 {[%clk 0:00:01]} 40. Rf2 {[%clk 0:00:06]}  Ke8 {[%clk 0:00:00]} 41. b4 {[%clk 0:00:06]} 1-0